Cogmind - Beta 13 @@@ ROGUE MODE // 2024.04.20 @ 11:53:29 Player: opaguck Result: Destroyed by S-27 Virus with Autogun Performance ------------- Evolutions (6) 3000 Regions Visited (14) 2800 Robots Destroyed (31) 155 Value Destroyed (1231) 1231 Prototype IDs (5) 100 Alien Tech Used (0) 0 Bonus (1055) 1055 TOTAL SCORE: 8341 Bonus ------- Follower Combat Kills 807 Aligned with FarCom 300 Friendly Fire -52 Cogmind --------- Core Integrity 0/1150 Matter 148/300 Energy 100/100 System Corruption 7% Temperature Cool (0) Movement Core (50) Location -4/Upper Caves Parts ------- > --- POWER (2) -------- (None) > --- PROPULSION (4) --- (None) > --- UTILITY (10) ----- Improved Target Analyzer Improved Target Analyzer > --- WEAPON (3) ------- (None) > --- INVENTORY (5) ---- Large Storage Unit Faulty Heavy Wave Gun Peak State ------------ > --- POWER ------------ Micro Fission Core > --- PROPULSION ------- Advanced Myomer Leg Antigrav System Antigrav System > --- UTILITY ---------- Experimental Heat Sink Improved Sensor Array Improved Target Analyzer Improved Target Analyzer Point Defense System Bomb Drone Bay > --- WEAPON ----------- High-powered Shock Rifle Improved Remote Datajack Chainsword > --- INVENTORY -------- Large Storage Unit Heavy Wave Gun [Rating: 81] Favorites ----------- Power Light Deuterium Engine Engine Light Deuterium Engine Power Core Light Nuclear Core Propulsion Compact Wheel Treads Light Treads Leg Advanced Myomer Leg Wheel Compact Wheel Hover Unit Antigrav System Utility Recalibrator Device Recalibrator Storage Large Storage Unit Processor Target Analyzer Hackware Makeshift Hacking Suite Protection Hardened Light Armor Plating Weapon Proton Missile Launcher Energy Gun EM Pulse Gun Energy Cannon Guided Plasma Cannon Ballistic Gun Light Assault Rifle Ballistic Cannon Advanced Assault Cannon Launcher Proton Missile Launcher Special Weapon Enhanced Flamer Slashing Weapon Chainsword Special Melee Weapon Improved Datajack Build | -11 -10 -10 -10 -9 -8 -7 -7 -7 -7 -6 -6 -5 -4 -4 ------- Run | Yrd Mat Min Exi Min Mat Fac Low Low Zio Pro Fac Fac Fac Upp Slots Evolved 12 | . . . . . 4 2 . . . . 2 2 2 . Power 1 | . . . . . 1 . . . . . . . . . Propulsion 2 | . . . . . 1 . . . . . 1 . . . Utility 8 | . . . . . 2 2 . . . . . 2 2 . Weapon 1 | . . . . . . . . . . . 1 . . . Parts Attached 72 | 5 2 . 2 . 6 5 8 3 3 7 5 8 16 2 Power 7 | 1 . . . . 1 . 2 . . 2 . . 1 . Engine 4 | 1 . . . . 1 . 1 . . 1 . . . . Core 3 | . . . . . . . 1 . . 1 . . 1 . Reactor . | . . . . . . . . . . . . . . . Propulsion 15 | 2 . . . . 2 . 1 . . 4 . 2 3 1 Treads 2 | . . . . . . . . . . 2 . . . . Leg 2 | . . . . . . . . . . 1 . . 1 . Wheel 9 | 2 . . . . 2 . 1 . . 1 . 2 . 1 Hover 2 | . . . . . . . . . . . . . 2 . Flight . | . . . . . . . . . . . . . . . Utility 33 | . 2 . . . 3 3 3 3 2 . 3 4 9 1 Device 17 | . . . . . 2 2 3 2 1 . 1 . 5 1 Storage 1 | . . . . . . . . . . . . . 1 . Processor 4 | . . . . . . . . . . . 1 1 2 . Hackware 3 | . . . . . . . . . . . 1 1 1 . Protection 8 | . 2 . . . 1 1 . 1 1 . . 2 . . Artifact . | . . . . . . . . . . . . . . . Weapon 17 | 2 . . 2 . . 2 2 . 1 1 2 2 3 . Energy Gun 3 | 1 . . . . . . . . . . . 1 1 . Energy Cannon 1 | . . . 1 . . . . . . . . . . . Ballistic Gun 2 | 1 . . 1 . . . . . . . . . . . Ballistic Cannon 4 | . . . . . . 1 1 . . 1 . 1 . . Launcher 3 | . . . . . . 1 1 . 1 . . . . . Special Weapon 2 | . . . . . . . . . . . 1 . 1 . Impact Weapon . | . . . . . . . . . . . . . . . Slashing Weapon 1 | . . . . . . . . . . . . . 1 . Piercing Weapon . | . . . . . . . . . . . . . . . Special Melee Weapon 1 | . . . . . . . . . . . 1 . . . Unidentified Prototypes 5 | . . . 1 . 1 . . . 1 . . . 2 . Parts Lost 48 | . . . . . . 2 11 . . 1 4 16 3 11 Power 6 | . . . . . . . 3 . . . 1 2 . . Propulsion 12 | . . . . . . 1 2 . . 1 . 4 . 4 Utility 22 | . . . . . . 1 5 . . . 1 7 3 5 Weapon 8 | . . . . . . . 1 . . . 2 3 . 2 Highest Loss Streak 16 | . . . . . . 2 6 . . 1 3 16 3 9 To Critical Strikes . | . . . . . . . . . . . . . . . Average Slot Usage (%) 67 | . 84 100 99 100 83 96 42 41 57 67 77 64 35 43 Engine 7 | . 14 14 14 14 11 15 3 7 7 7 6 4 . . Treads 2 | . . . . . . . . . . 4 13 8 . . Wheel 10 | . 28 28 28 28 20 22 4 7 7 6 6 4 . . Device 16 | . . . . . 9 19 19 20 23 23 18 13 10 9 Processor 1 | . . . . . . . . . . . 3 9 1 10 Protection 12 | . 13 28 28 28 25 22 1 4 14 15 4 4 3 . Energy Gun 1 | . 14 14 11 . . . . . . . . 3 . 2 Energy Cannon 2 | . . . 2 14 9 7 3 . . . . . . . Ballistic Gun 2 | . 14 14 13 14 9 3 . . . . . . . . Ballistic Cannon 1 | . . . . . . 2 1 . . . 6 . . . Launcher 2 | . . . . . . . 3 . 4 7 2 . . . Naked Turns 18 | . . . . . . . . . . . . 18 . . Heaviest Build 66 | 7 11 11 18 18 31 39 30 13 50 66 66 57 40 28 Greatest Support 48 | 32 32 32 32 32 48 48 16 16 16 40 40 40 30 30 Greatest Overweight (x) 16 | . . . . . . . 4 . 3 16 1 14 1 2 Average Overweight (x) . | . . . . . . . . . 2 4 1 . . . Largest Inventory Capacity 15 | 5 5 5 5 5 5 5 5 5 5 5 5 5 15 5 Average Capacity 5 | 5 5 5 5 5 5 5 5 5 5 5 5 5 5 5 Most Carried 5 | 1 1 1 4 5 5 5 5 5 5 5 5 5 4 4 Average Carried 4 | . 1 1 1 4 4 4 4 4 4 4 4 3 3 3 Final Capacity 5 | 5 5 5 5 5 5 5 5 5 5 5 5 5 5 5 Final Carried 5 | 1 1 1 2 5 5 5 4 5 5 5 5 4 4 2 Class Distribution -------------------- 74% | Mutant 16% | Scavenger-Mutant 4% | Infiltrator-Mutant Dominant Class ---------------- Mutant | -10/Materials Mutant | -10/Mines Mutant | -10/Exiles Mutant | -9/Mines Mutant | -8/Materials Infiltrator-Mutant | -7/Factory Mutant | -7/Lower Caves Mutant | -7/Lower Caves Mutant | -7/Zion Mutant | -6/Proximity Caves Scavenger-Mutant | -6/Factory Scavenger-Mutant | -5/Factory Assassin | -4/Factory Scavenger-Mutant | -4/Upper Caves Resources | -11 -10 -10 -10 -9 -8 -7 -7 -7 -7 -6 -6 -5 -4 -4 ----------- Run | Yrd Mat Min Exi Min Mat Fac Low Low Zio Pro Fac Fac Fac Upp Matter Collected 997 | 250 16 10 . 26 30 70 177 72 55 125 . . 115 51 Remotely . | . . . . . . . . . . . . . . . Salvage Created 918 | 27 64 10 . 29 116 420 49 . . 23 26 39 115 . Parts 68 | 4 6 3 . 4 10 28 2 . . 1 4 . 6 . Haulers Intercepted . | . . . . . . . . . . . . . . . Recyclers Shooed 1 | . . . . . . 1 . . . . . . . . Parts Field Recycled . | . . . . . . . . . . . . . . . Retrieved Matter . | . . . . . . . . . . . . . . . Parts Self-Destructed 30 | . . . . . . . 8 . . 22 . . . . Prevented 8 | . . . . . . . 4 . . 4 . . . . Kills | -11 -10 -10 -10 -9 -8 -7 -7 -7 -7 -6 -6 -5 -4 -4 ------- Run | Yrd Mat Min Exi Min Mat Fac Low Low Zio Pro Fac Fac Fac Upp Combat Hostiles Destroyed 24 | . 1 1 . 2 2 10 2 . . 2 1 1 2 . Melee 2 | . . . . . . . . . . . . . 2 . Guns 1 | . . 1 . . . . . . . . . . . . Cannons 15 | . . . . 2 2 8 1 . . 2 . . . . AOE 5 | . 1 . . . . 2 . . . . 1 1 . . Classes Destroyed 10 | 1 2 1 . . 1 5 . . . . . . . . Worker 1 | . . . . . . 1 . . . . . . . . Builder 2 | . . . . . . 2 . . . . . . . . Tunneler 1 | 1 . . . . . . . . . . . . . . Operator 1 | . 1 . . . . . . . . . . . . . Watcher 2 | . . . . . . 2 . . . . . . . . Swarmer 13 | . . 1 . 2 . 6 2 . . 2 . . . . Grunt 1 | . 1 . . . . . . . . . . . . . Sentry 4 | . . . . . 2 2 . . . . . . . . Hunter 1 | . . . . . . 1 . . . . . . . . Programmer 5 | . . . . . . 1 . . . . 1 1 2 . Best Kill Streak 10 | 1 2 1 . 2 1 10 2 . . 2 1 1 1 . Combat Bots Only 8 | . 1 1 . 2 1 8 2 . . 2 1 1 1 . Max Kills in Single Turn 3 | 1 1 1 . 1 1 3 1 . . 1 1 1 1 . Gunslinging . | . . . . . . . . . . . . . . . Exploded 1 | . 1 . . . . 1 . . . . 1 1 . . Melee 1 | . . . . . . . . . . . . . 1 . Uniques/NPCs Destroyed . | . . . . . . . . . . . . . . . Combat | -11 -10 -10 -10 -9 -8 -7 -7 -7 -7 -6 -6 -5 -4 -4 -------- Run | Yrd Mat Min Exi Min Mat Fac Low Low Zio Pro Fac Fac Fac Upp Hostile Shots Fired 455 | . 3 13 . 4 4 78 37 . . 7 28 107 21 153 Missed 160 | . 2 4 . 2 1 31 9 . . 1 8 39 2 61 Damage Taken 6045 | . 11 76 . 15 47 468 983 . . 100 612 1602 377 1754 Core 2187 | . . 20 . . . 75 298 . . . 63 574 123 1034 Absorbed by Shields . | . . . . . . . . . . . . . . . Redirected to Shielding 91 | . 3 7 . . 4 26 9 . . 10 . 32 . . Regen/Repaired (Parts) 32 | . . . . . . 32 . . . . . . . . Core Remaining (%) 78 | 100 . . . 92 100 . . . . 46 92 42 . . Volleys Fired 87 | 3 4 3 . 3 4 33 14 . . 6 6 10 . 1 Largest 2 | 1 2 1 . 1 1 1 1 . . 1 2 2 . 1 Hottest 128 | 40 60 20 . 120 120 120 120 . . 48 128 113 . 7 Shots Fired 104 | 3 6 3 . 3 4 33 15 1 . 6 9 20 . 1 Gun 22 | 3 6 3 . . . . . . . . . 10 . . Cannon 75 | . . . . 3 4 32 14 1 . 6 5 10 . . Launcher 4 | . . . . . . 1 1 . . . 2 . . . Special 3 | . . . . . . . . . . . 2 . . 1 Kinetic 27 | . 2 3 . . . . . 1 . 6 5 10 . . Thermal 55 | . . . . 3 4 32 14 . . . 2 . . . Explosive 2 | . . . . . . 1 1 . . . . . . . Electromagnetic 19 | 3 4 . . . . . . . . . 2 10 . . Robot Hit Streak 48 | 1 2 1 . 3 7 34 48 . . 2 1 4 . 1 Robot Miss Streak 4 | 1 2 1 . . . . . . . 2 1 4 . . Penetration Max . | . . . . . . . . . . . . . . . Secondary Targets . | . . . . . . . . . . . . . . . Shots Hit Robots 81 | 2 3 1 . 3 4 27 14 . . 3 2 12 9 1 Core Hits 38 | 1 2 1 . 2 2 17 1 . . 2 2 4 4 . Critical Kills . | . . . . . . . . . . . . . . . Critical Parts Destroyed . | . . . . . . . . . . . . . . . Critical Strikes 1 | . . . . . . . . . . . . . 1 . Sever 1 | . . . . . . . . . . . . . 1 . Melee Attacks 16 | . . . . . . . . . . . . 6 10 . Impact . | . . . . . . . . . . . . . . . Slashing 10 | . . . . . . . . . . . . . 10 . Piercing . | . . . . . . . . . . . . . . . Sneak Attacks 6 | . . . . . . . . . . . . 6 . . Combat Hostiles . | . . . . . . . . . . . . . . . Follow-up Attacks . | . . . . . . . . . . . . . . . Damage Inflicted 3011 | 25 87 29 . 103 151 1261 523 . . 80 163 280 309 . Guns 93 | 25 27 22 . . . . . . . . . 19 . . Cannons 1878 | . . . . 101 151 933 504 . . 80 . 109 . . Explosions 696 | . 60 . . . . 328 19 . . . 142 147 . . Melee 309 | . . . . . . . . . . . . . 309 . Ramming 20 | . . 7 . 2 . . . . . . 6 5 . . Kinetic 211 | . . 22 . . . . . . . 80 . 109 . . Thermal 2295 | . 60 . . 101 151 1179 504 . . . 153 147 . . Explosive 101 | . . . . . . 82 19 . . . . . . . Electromagnetic 75 | 25 27 . . . . . . . . . 4 19 . . Impact . | . . . . . . . . . . . . . . . Slashing 309 | . . . . . . . . . . . . . 309 . Piercing . | . . . . . . . . . . . . . . . Highest Corruption 34 | . . . . . . . 10 10 10 . 5 34 7 7 Average Corruption 9 | . . . . . . . 9 10 10 . 4 21 6 7 Corruption Purged . | . . . . . . . . . . . . . . . Corruption Blocked . | . . . . . . . . . . . . . . . Effects 110 | . . . . . . . 58 19 2 . 10 10 5 6 Message Errors 23 | . . . . . . . 11 4 . . 4 1 3 . Matter Fused 31 | . . . . . . . 19 7 1 . 1 2 1 . Heat Flow Errors 13 | . . . . . . . 8 2 1 . 1 . 1 . Energy Discharges 14 | . . . . . . . 7 1 . . 1 2 . 3 Parts Fused 2 | . . . . . . . 1 . . . . . . 1 Data Loss (minor) 13 | . . . . . . . 4 3 . . 3 3 . . Data Loss (major) 7 | . . . . . . . 5 1 . . . . . 1 Misfires 2 | . . . . . . . 1 1 . . . . . . Alerts 3 | . . . . . . . 2 . . . . . . 1 Misdirections 2 | . . . . . . . . . . . . 2 . . Overload Shots . | . . . . . . . . . . . . . . . Overflow Damage 285 | . . . . . . 64 82 . . . 77 60 2 . Projectiles 126 | . . . . . . 44 82 . . . . . . . Explosions 157 | . . . . . . 20 . . . . 77 60 . . Melee 2 | . . . . . . . . . . . . . 2 . Knockbacks 1 | . . . . . . . . . . . . 1 . . Impact . | . . . . . . . . . . . . . . . Kinetic 1 | . . . . . . . . . . . . 1 . . Secondary . | . . . . . . . . . . . . . . . Self-Inflicted Damage 316 | . . 3 . 1 . . 40 . . . 271 1 . . Shots 5 | . . . . . . . 1 . . . 4 . . . Rammed 8 | . . 1 . 1 . . 1 . . . 2 3 . . Targets Rammed 8 | . . 1 . 1 . . 1 . . . 2 3 . . Kicked . | . . . . . . . . . . . . . . . Crushed . | . . . . . . . . . . . . . . . Highest Temperature 484 | 20 6 . . 258 249 433 484 228 66 . 104 208 147 10 Average Temperature 112 | 20 6 . . 130 111 115 149 102 45 . 32 114 84 10 Received Heat Transfer 475 | . 6 . . . 9 6 99 . . 9 81 18 . 247 Effects 1 | . . . . . . 1 . . . . . . . . Shutdowns 1 | . . . . . . 1 . . . . . . . . Siege Activations . | . . . . . . . . . . . . . . . Robots Corrupted . | . . . . . . . . . . . . . . . Combat Hostiles . | . . . . . . . . . . . . . . . Parts Fried . | . . . . . . . . . . . . . . . Impact Corruptions . | . . . . . . . . . . . . . . . Robots Melted 1 | . . . . . . . 1 . . . . . . . Combat Hostiles 1 | . . . . . . . 1 . . . . . . . Parts Melted 11 | . . . . 2 . 9 . . . . . . . . Heat Transferred 4240 | . 50 . . 240 320 2280 1120 . . . 130 100 . . Parts Sabotaged . | . . . . . . . . . . . . . . . Parts Stolen . | . . . . . . . . . . . . . . . Parts Stripped . | . . . . . . . . . . . . . . . Power Chain Reactions 1 | . 1 . . . . . . . . . . . . . Alert | -11 -10 -10 -10 -9 -8 -7 -7 -7 -7 -6 -6 -5 -4 -4 ------- Run | Yrd Mat Min Exi Min Mat Fac Low Low Zio Pro Fac Fac Fac Upp Peak Influence 530 | 5 59 57 . 65 106 530 . . . . 81 157 62 . Initial 47 | . 3 22 . . . 47 . . . . 4 . 27 . Average 31 | . 49 45 . 33 47 59 . . . . 10 16 29 . Maximum Alert Level 2 | . . . . . . 2 . . . . . . . . Low Security (%) 99 | 100 100 100 . 100 100 96 . . . . 100 100 100 . Level 1 . | . . . . . . 1 . . . . . . . . Level 2 . | . . . . . . 2 . . . . . . . . Level 3 . | . . . . . . . . . . . . . . . Level 4 . | . . . . . . . . . . . . . . . Level 5 . | . . . . . . . . . . . . . . . High Security . | . . . . . . . . . . . . . . . Max Security . | . . . . . . . . . . . . . . . Squads Dispatched 12 | . 1 . . 1 . 4 . . . 1 2 2 1 . Investigation 3 | . . . . 1 . 1 . . . . . 1 . . Extermination 5 | . . . . . . 1 . . . . 2 1 1 . Reinforcement 3 | . 1 . . . . 2 . . . . . . . . Assault 1 | . . . . . . . . . . 1 . . . . Garrison . | . . . . . . . . . . . . . . . Intercept . | . . . . . . . . . . . . . . . Searches Triggered . | . . . . . . . . . . . . . . . Construction Impeded . | . . . . . . . . . . . . . . . Haulers Reinforced 1 | . . . . . . 1 . . . . . . . . Active Scanning Responses . | . . . . . . . . . . . . . . . Cargo Convoy Interrupts . | . . . . . . . . . . . . . . . Stealth | -11 -10 -10 -10 -9 -8 -7 -7 -7 -7 -6 -6 -5 -4 -4 --------- Run | Yrd Mat Min Exi Min Mat Fac Low Low Zio Pro Fac Fac Fac Upp Distress Signals 4 | . 1 . . . . 1 . . . . . 1 1 . Communications Jammed 5 | . . . . . . 5 . . . . . . . . Distress Signals 3 | . . . . . . 3 . . . . . . . . Times Spotted 100 | . 8 3 . 3 2 19 14 . . 17 5 10 3 16 Peak Tracking Total 10 | . 5 3 . 2 1 5 7 . . 9 5 6 3 10 Tactical Retreats 17 | . . 1 . . . 3 . . . 4 1 2 1 5 Traps | -11 -10 -10 -10 -9 -8 -7 -7 -7 -7 -6 -6 -5 -4 -4 ------- Run | Yrd Mat Min Exi Min Mat Fac Low Low Zio Pro Fac Fac Fac Upp Traps Triggered 3 | . . . . . . 2 . . . . . 1 . . Indirectly . | . . . . . . . . . . . . . . . Trap Hack Attempts . | . . . . . . . . . . . . . . . Triggered . | . . . . . . . . . . . . . . . Disarmed . | . . . . . . . . . . . . . . . Reprogrammed . | . . . . . . . . . . . . . . . Reused . | . . . . . . . . . . . . . . . Traps Extracted . | . . . . . . . . . . . . . . . Installed . | . . . . . . . . . . . . . . . Triggered 1 | . . . . . . . 1 . . . . . . . Fabricated Traps 1 | . . . . . . . . . . . . 1 . . Most Traps Carried 1 | . . . . . . . . . . . . 1 . . Machines | -11 -10 -10 -10 -9 -8 -7 -7 -7 -7 -6 -6 -5 -4 -4 ---------- Run | Yrd Mat Min Exi Min Mat Fac Low Low Zio Pro Fac Fac Fac Upp Machines Disabled 23 | . 1 . . . . 13 . . . . 4 5 . . Max in Single Turn 13 | . 1 . . . . 13 . . . . 2 5 . . Machines Repaired . | . . . . . . . . . . . . . . . Machines Dismantled . | . . . . . . . . . . . . . . . Machines Sabotaged . | . . . . . . . . . . . . . . . Overloaded Fab Kills . | . . . . . . . . . . . . . . . Hacking | -11 -10 -10 -10 -9 -8 -7 -7 -7 -7 -6 -6 -5 -4 -4 --------- Run | Yrd Mat Min Exi Min Mat Fac Low Low Zio Pro Fac Fac Fac Upp Machines Accessed 24 | . 1 . 4 2 3 5 2 1 . . 2 4 . . Terminals 8 | . . . . . 3 1 . 1 . . 1 2 . . Fabricators 3 | . . . . . . 3 . . . . . . . . Repair Stations 3 | . . . . . . 1 . . . . 1 1 . . Recycling Units 2 | . 1 . . . . . . . . . . 1 . . Scanalyzers . | . . . . . . . . . . . . . . . Garrison Access . | . . . . . . . . . . . . . . . Total Hacks 104 | . 1 . 49 2 8 7 12 2 . . 3 20 . . Successful 93 | . 1 . 49 2 7 5 12 2 . . 1 14 . . Failed 10 | . . . . . 1 2 . . . . 2 5 . . Catastrophic 2 | . . . . . 1 . . . . . . 1 . . Database Lockouts 1 | . . . . . . . . . . . . 1 . . Manual 2 | . . . 1 . . . . . . . . 1 . . Terminals 23 | . . . . . 8 1 . 2 . . 1 11 . . Fabricators 4 | . . . . . . 4 . . . . . . . . Repair Stations 11 | . . . . . . 2 . . . . 2 7 . . Recycling Units 3 | . 1 . . . . . . . . . . 2 . . Scanalyzers . | . . . . . . . . . . . . . . . Garrison Access . | . . . . . . . . . . . . . . . Terminal Hacks 82 | . . . 49 2 7 1 12 2 . . 1 8 . . Record 74 | . . . 49 . 4 . 11 2 . . 1 7 . . Open Door 3 | . . . . 2 . . 1 . . . . . . . Open DSF 1 | . . . . . . 1 . . . . . . . . Emergency Access Points 1 | . . . . . 1 . . . . . . . . . Maintenance Status 1 | . . . . . 1 . . . . . . . . . Hauler Manifests 1 | . . . . . . . . . . . . 1 . . Zone Layout 1 | . . . . . 1 . . . . . . . . . Fabricator Hacks 2 | . . . . . . 2 . . . . . . . . Network Status 1 | . . . . . . 1 . . . . . . . . Build 1 | . . . . . . 1 . . . . . . . . Repair Station Hacks 6 | . . . . . . 2 . . . . . 4 . . Scan Component 4 | . . . . . . 1 . . . . . 3 . . Repair 1 | . . . . . . 1 . . . . . . . . Refit 1 | . . . . . . . . . . . . 1 . . Recycling Unit Hacks 3 | . 1 . . . . . . . . . . 2 . . Report Inventory 2 | . 1 . . . . . . . . . . 1 . . Retrieve Components 1 | . . . . . . . . . . . . 1 . . Scanalyzer . | . . . . . . . . . . . . . . . Garrison Access Hacks . | . . . . . . . . . . . . . . . Unauthorized Hacks . | . . . . . . . . . . . . . . . Terminals . | . . . . . . . . . . . . . . . Fabricators . | . . . . . . . . . . . . . . . Repair Stations . | . . . . . . . . . . . . . . . Recycling Units . | . . . . . . . . . . . . . . . Scanalyzers . | . . . . . . . . . . . . . . . Garrison Access . | . . . . . . . . . . . . . . . Data Cores Recovered 1 | . 1 . . . . . . . . . . . . . Used . | . . . . . . . . . . . . . . . Hacking Detections 11 | . . . . . 2 4 . 1 . . 1 3 . . Full Trace Events 2 | . . . . . . 1 . . . . . 1 . . Feedback Events . | . . . . . . . . . . . . . . . Feedback Blocked . | . . . . . . . . . . . . . . . Robot Schematics Acquired . | . . . . . . . . . . . . . . . Robots Built 2 | . . . . . . 2 . . . . . . . . Authchips . | . . . . . . . . . . . . . . . Time 67 | . . . . . . 67 . . . . . . . . Total Robot Build Rating 8 | . . . . . . 8 . . . . . . . . Part Schematics Acquired . | . . . . . . . . . . . . . . . Parts Built . | . . . . . . . . . . . . . . . Authchips . | . . . . . . . . . . . . . . . Time . | . . . . . . . . . . . . . . . Total Part Build Rating . | . . . . . . . . . . . . . . . Parts Repaired 1 | . . . . . . 1 . . . . . . . . Time 16 | . . . . . . 16 . . . . . . . . Parts Recycled . | . . . . . . . . . . . . . . . Recycled Matter . | . . . . . . . . . . . . . . . Retrieved Matter . | . . . . . . . . . . . . . . . Retrieved Components 1 | . . . . . . . . . . . . 1 . . Parts Scanalyzed . | . . . . . . . . . . . . . . . Part Schematics Acquired . | . . . . . . . . . . . . . . . Parts Damaged . | . . . . . . . . . . . . . . . Bothacking | -11 -10 -10 -10 -9 -8 -7 -7 -7 -7 -6 -6 -5 -4 -4 ------------ Run | Yrd Mat Min Exi Min Mat Fac Low Low Zio Pro Fac Fac Fac Upp Used RIF Installer . | . . . . . . . . . . . . . . . Robots Hacked 3 | . . . . . . . . . . . . 2 . 1 Non-combat 2 | . . . . . . . . . . . . 2 . . Combat 1 | . . . . . . . . . . . . . . 1 Robot Hacks Applied 6 | . . . . . . . . . . . . 5 . 1 parse_system 3 | . . . . . . . . . . . . 2 . 1 no_distress 1 | . . . . . . . . . . . . 1 . . find_chute 1 | . . . . . . . . . . . . 1 . . find_station 1 | . . . . . . . . . . . . 1 . . Relay Couplers Released . | . . . . . . . . . . . . . . . Fabnet Peak Effective % . | . . . . . . . . . . . . . . . Robots Rewired 4 | . . . . . . . 2 . . 2 . . . . Allies Hacked . | . . . . . . . . . . . . . . . Hacks Repelled . | . . . . . . . . . . . . . . . Allies | -11 -10 -10 -10 -9 -8 -7 -7 -7 -7 -6 -6 -5 -4 -4 -------- Run | Yrd Mat Min Exi Min Mat Fac Low Low Zio Pro Fac Fac Fac Upp Total Allies 17 | . . . . . . 2 4 . 9 2 . . . . Largest Group 10 | . . . . . . 2 4 2 10 10 . . . . Highest-Rated Group 233 | . . . . . . 64 93 41 233 230 . . . . Highest-Rated Ally 32 | . . . . . . 32 32 25 31 31 . . . . Total Orders . | . . . . . . . . . . . . . . . Ally Attacks 145 | . . . . . . 10 17 . . 117 . . . 1 Total Damage 3053 | . . . . . . 264 409 . . 2380 . . . . Kills 25 | . . . . . . 1 5 . . 19 . . . . Allies Corrupted . | . . . . . . . . . . . . . . . Allies Melted . | . . . . . . . . . . . . . . . Intel | -11 -10 -10 -10 -9 -8 -7 -7 -7 -7 -6 -6 -5 -4 -4 ------- Run | Yrd Mat Min Exi Min Mat Fac Low Low Zio Pro Fac Fac Fac Upp Robot Analysis Total . | . . . . . . . . . . . . . . . Derelict Logs Recovered 7 | . . . . 1 . . 2 . 2 2 . . . . Drone Launches 7 | . . . . . . . 6 . . . . . . 1 Drone Recoveries . | . . . . . . . . . . . . . . . Exploration | -11 -10 -10 -10 -9 -8 -7 -7 -7 -7 -6 -6 -5 -4 -4 ------------- Run | Yrd Mat Min Exi Min Mat Fac Low Low Zio Pro Fac Fac Fac Upp Turns Passed 11831 | 61 150 133 619 747 360 943 1515 576 1630 2667 1018 738 453 221 Spaces Moved 7599 | 49 134 102 603 719 336 636 1189 565 1205 691 311 410 326 323 Core 803 | 3 . . . . . . 362 . . 113 . 157 47 121 Treads 1002 | . . . . . . . . . . 486 311 205 . . Legs 218 | . . . . . . . . . . . . . 214 4 Wheels 5316 | 46 134 102 603 719 336 636 827 565 1205 92 . 48 . 3 Hover 260 | . . . . . . . . . . . . . 65 195 Flight . | . . . . . . . . . . . . . . . Fastest Speed 50 | 50 100 100 100 100 93 100 50 100 100 145 240 50 50 50 Average Speed 139 | 96 100 100 100 100 98 100 114 100 134 373 240 155 104 66 Slowest Speed 850 | 100 100 100 100 100 100 100 250 100 145 850 240 750 130 150 Overloaded Moves . | . . . . . . . . . . . . . . . Propulsion Burnouts . | . . . . . . . . . . . . . . . Robots Hopped . | . . . . . . . . . . . . . . . Cave-ins Triggered . | . . . . . . . . . . . . . . . Exploration Rate (%) 48 | 4 32 24 92 97 33 20 98 73 80 84 6 11 8 63 Regions Visited 14 Branch Regions 8 Pre-discovered Areas 3 | . . . 1 . . . 2 . . . . . . . Known Exits Taken 1 | . . . . . . . . . . . 1 . . . Unknown Exits Taken 13 | 1 1 1 1 1 1 1 1 1 1 1 . 1 1 . Scrap Searched 14 | . . . . 3 . . 4 2 3 1 . . . 1 Spaces Dug 5 | . . . . . . 4 . . . . 1 . . . Terrain Destroyed 114 | . 1 . . . . 34 7 . . 1 45 26 . . Melee . | . . . . . . . . . . . . . . . Projectile 10 | . . . . . . 6 . . . 1 2 1 . . AOE 104 | . 1 . . . . 28 7 . . . 43 25 . . Terrain Rammed . | . . . . . . . . . . . . . . . Walls Destroyed . | . . . . . . . . . . . . . . . Machines Disabled . | . . . . . . . . . . . . . . . Actions | -11 -10 -10 -10 -9 -8 -7 -7 -7 -7 -6 -6 -5 -4 -4 --------- Run | Yrd Mat Min Exi Min Mat Fac Low Low Zio Pro Fac Fac Fac Upp Total 8657 | 57 143 130 619 744 361 908 1331 576 1212 771 570 488 417 330 Wait 757 | . 4 25 7 18 8 233 73 1 . 37 241 44 64 2 Move 7585 | 48 133 101 602 718 335 635 1188 564 1204 690 310 409 325 323 Hop . | . . . . . . . . . . . . . . . Pick Up 24 | 1 . . 1 3 4 1 2 1 3 1 3 3 1 . Fast Attach 47 | 5 2 . . . 3 3 3 3 1 6 2 4 14 1 Attach 24 | . . . 2 . 3 1 5 . 2 1 3 4 2 1 Detach 9 | . . . 2 . 1 . 2 1 . . 1 1 1 . Swap 1 | . . . . . . 1 . . . . . . . . Drop 19 | . . . . 1 3 1 1 2 2 2 2 3 . 2 Fire 87 | 3 4 3 . 3 4 33 14 . . 6 6 10 . 1 Melee 16 | . . . . . . . . . . . . 6 10 . Ram 7 | . . 1 . 1 . . 1 . . . . 4 . . Kick . | . . . . . . . . . . . . . . . Crush 2 | . . . . . . . . . . . 2 . . . Escape Stasis . | . . . . . . . . . . . . . . . Rewire 79 | . . . 5 . . . 42 4 . 28 . . . . Trap . | . . . . . . . . . . . . . . . Miscellaneous . | . . . . . . . . . . . . . . . Route ------- -11/Scrapyard -10/Materials -10/Mines (discovered 2 exits: [*Mat] / *Exi) -10/Exiles -9/Mines (discovered 2 exits: *Mat x2) -8/Materials -7/Factory -7/Lower Caves -7/Lower Caves (discovered 2 exits: *Fac / *Zio) -7/Zion -6/Proximity Caves -6/Factory -5/Factory -4/Factory (discovered 2 exits: Res / [*Upp]) -4/Upper Caves History --------- Turn | Location | Event 4 | -11/Scrapyard | Discovered new exit (range 16) 62 | -11/Scrapyard | Entered Materials 131 | -10/Materials | Met 8R-AWN 186 | -10/Materials | Discovered new exit (range 15) 212 | -10/Materials | Entered Mines 213 | -10/Mines | Followed 8R-AWN into the Mines 232 | -10/Mines | Met a Derelict bent on vengeance 305 | -10/Mines | Discovered new exit (range 5) 314 | -10/Mines | Build established: Mutant 340 | -10/Mines | Discovered new exit (range 5) 345 | -10/Mines | Entered Exiles 369 | -10/Exiles | Welcomed by 8R-AWN 390 | -10/Exiles | Met EX-HEX 496 | -10/Exiles | Met EX-DEC 528 | -10/Exiles | Learned location of Zion (-7) 558 | -10/Exiles | Discovered new exit (range 10) 630 | -10/Exiles | Visited The Gauntlet 784 | -10/Exiles | Met EX-BIN 803 | -10/Exiles | Aligned with FarCom system 804 | -10/Exiles | Given EX-Vault access code 857 | -10/Exiles | Opened EX-Vault 863 | -10/Exiles | Found Prototype Energy Cannon 870 | -10/Exiles | Identified Gui. Plasma Cannon 890 | -10/Exiles | Warned to stay clear of 0b10 Research branches 964 | -10/Exiles | Left Exiles lab with Gui. Plasma Cannon 964 | -10/Exiles | Entered Mines 967 | -9/Mines | Found the Drone Emporium 971 | -9/Mines | Found Prototype Device 1292 | -9/Mines | Discovered new exit (range 14) 1580 | -9/Mines | Met a Derelict shopkeep closing up shop 1692 | -9/Mines | Discovered new exit (range 5) 1711 | -9/Mines | Entered Materials 1711 | -8/Materials | Evolved 4 slots: Power x1, Propulsion x1, Utility x2 1711 | -8/Materials | Identified Bomb Drone Bay 2033 | -8/Materials | Discovered new exit (range 3) 2071 | -8/Materials | Entered Factory 2071 | -7/Factory | Evolved 2 slots: Utility x2 2110 | -7/Factory | Identified exit to DSF 2173 | -7/Factory | Repaired Med. Armor Plating 2733 | -7/Factory | Build established: Infiltrator-Mutant 2743 | -7/Factory | Fabricated Y-54 Guardian (x2) 2932 | -7/Factory | Discovered new exit (range 16) 3014 | -7/Factory | Entered Lower Caves 3014 | -7/Lower Caves | Accompanied by 1 ally 3016 | -7/Lower Caves | Destroyed 8 combat bots 3018 | -7/Lower Caves | System corruption reached 10% 3057 | -7/Lower Caves | Lost 6 parts (1p2n3u) 3321 | -7/Lower Caves | Build established: Mutant 3738 | -7/Lower Caves | Learned location of 1 exit from Factory 3754 | -7/Lower Caves | Attracted the attention of an 0b10 outpost 3803 | -7/Lower Caves | Lost 5 parts (1p1n2u1w) 3805 | -7/Lower Caves | Lost 6 allies 3851 | -7/Lower Caves | Core integrity fell below 50% 3892 | -7/Lower Caves | Learned Factory terminal intel 4222 | -7/Lower Caves | A Commander dispatched an escort 4233 | -7/Lower Caves | Learned location of Extension (-6) 4233 | -7/Lower Caves | Learned location of Armory (-3) 4233 | -7/Lower Caves | Learned Armory emergency access door positions 4233 | -7/Lower Caves | Learned Extension stockpile data 4233 | -7/Lower Caves | Learned Armory stockpile data 4233 | -7/Lower Caves | Learned Factory terminal intel 4316 | -7/Lower Caves | Discovered new exit (range 5) 4332 | -7/Lower Caves | Encountered a Warlord checkpoint 4529 | -7/Lower Caves | Entered another Lower Caves area 4529 | -7/Lower Caves | Accompanied by 2 allies 4530 | -7/Lower Caves | Commander's escort returned to base 4530 | -7/Lower Caves | Encountered a Warlord checkpoint 4593 | -7/Lower Caves | Discovered new exit (range 12) 5079 | -7/Lower Caves | Discovered new exit (range 7) 5105 | -7/Lower Caves | Entered Zion 5105 | -7/Zion | Accompanied by 1 ally 5152 | -7/Zion | Gained Derelict followers 5195 | -7/Zion | System corruption cleaned by Quarantine Array 5242 | -7/Zion | Learned Factory non-interactive machine intel 5309 | -7/Zion | Found Prototype Device 5310 | -7/Zion | Identified Bomb Factory No. 2 5435 | -7/Zion | Acquired unknown access codes intercepted by a Zionite 5593 | -7/Zion | Learned Factory terminal intel 6052 | -7/Zion | Gained Derelict followers 6700 | -7/Zion | Discovered new exit (range 14) 6735 | -7/Zion | Entered Proximity Caves 6735 | -6/Proximity Caves | Accompanied by 10 allies 6827 | -6/Proximity Caves | Attracted the attention of an 0b10 outpost 8010 | -6/Proximity Caves | Learned Factory security intel 8817 | -6/Proximity Caves | Learned Factory trap positions 8977 | -6/Proximity Caves | Discovered new exit (range 7) 9087 | -6/Proximity Caves | Lost 8 allies 9402 | -6/Proximity Caves | Entered Factory 9402 | -6/Factory | Evolved 2 slots: Propulsion x1, Weapon x1 9403 | -6/Factory | Identified exit to Factory 9404 | -6/Factory | Loaded intel: 86 trap records 9406 | -6/Factory | Loaded intel: 214 non-interactive machine locations 9407 | -6/Factory | Loaded intel: 28 terminal locations 9449 | -6/Factory | Build established: Scavenger-Mutant 9828 | -6/Factory | Lost 3 parts (1p1u1w) 10420 | -6/Factory | Entered another Factory area 10420 | -5/Factory | Evolved 2 slots: Utility x2 10421 | -5/Factory | Loaded intel: 26 terminal locations 10452 | -5/Factory | Central database locked down 11023 | -5/Factory | System corruption reached 10% 11059 | -5/Factory | System corruption reached 30% 11101 | -5/Factory | Lost 16 parts (2p4n7u3w) 11134 | -5/Factory | Core integrity fell below 50% 11151 | -5/Factory | Discovered new exit (range 16) 11158 | -5/Factory | Entered another Factory area 11158 | -4/Factory | Evolved 2 slots: Utility x2 11159 | -4/Factory | Identified exit to Research 11160 | -4/Factory | Loaded intel: 26 terminal locations 11508 | -4/Factory | Build established: Assassin 11553 | -4/Factory | Lost 3 parts (3u) 11602 | -4/Factory | Discovered new exit (range 5) 11611 | -4/Factory | Entered Upper Caves 11772 | -4/Upper Caves | Core integrity fell below 50% 11781 | -4/Upper Caves | Core integrity fell below 20% 11799 | -4/Upper Caves | Lost 9 parts (3n4u2w) 11820 | -4/Upper Caves | Encountered a Warlord checkpoint 11832 | -4/Upper Caves | Destroyed by S-27 Virus with Autogun Last Messages --------------- 11766_ System corrupted: Energy discharge (-60). 11766_ Exp. Heat Sink destroyed. 11768_ Imp. Sensor Array destroyed. 11772_ Discarded Chainsword. 11772_ Dropped Mic. Fission Core. 11776_ Penetrated by Slug. 11776_ Slug penetrates Wall. 11777_ Slug penetrates H-77 Assassin. 11779_ Penetrated by Slug. 11803_ Acquired 51 matter. 11804_ 97-2N2(r) destroyed. 11812_ Acquired Com. Wheel. 11817_ Com. Wheel destroyed. 11818_ System corrupted: IFF burst signal emitted. 11820_ KK-PAK(M): "This area isn't safe." 11820_ Searching scrap... 11820_ Found Great Maul. 11820_ Found 18 Matter. 11828_ KK-PAK(M) destroyed. Map ----- +----------------------------------------------------+ | ?????????????????????????????????????????????????? | | ?????????????????????????????????????????????????? | | ?????????????????????????????????????????????????? | | ?????????????????????????????????????????????????? | | ?????????????????????????????????????????????????? | | ?????????????????????????????????????????????????? | | ?????????????????????????????????????????????????? | | ?????????????????????????????????????????????????? | | ?????????????????????????????????????????????????? | | ?????????????????????????????????????????????????? | | ?????????????????????????????????????????????????? | | ??????????????????????????## ????????????????????? | | ?????????????????????????## ????????????????????? | | ?????????????????????????# ????????????????????? | | ?????????????????????????? ????????????????????? | | ??????????????????????????# ????????????????????? | | ??????????????????????????# ????????????????##### | | ??????????????????????????# ??????????????## # | | ??????????????????????????# ##???????????## | | ??????????????????????????# ####????????# ?? | | ??????????????????????????# ######???# ??? | | ??????????????????????????# #??## #???? | | ???????????????????????????# #?## #???? | | ????????????????############# ### #???? | | ????????????????# $ ]= ##??? | | ?????????? @ !%* "##? | | ?????????? ########### ![! ## | | ?????????????????????????????## ### / | | ??????????????????????????????#### ###?## % | | ?????????????????????????????????# ##????######### | | ?????????????????????????????????###?????????????? | | ?????????????????????????????????????????????????? | | ?????????????????????????????????????????????????? | | ?????????????????????????????????????????????????? | | ?????????????????????????????????????????????????? | | ?????????????????????????????????????????????????? | | ?????????????????????????????????????????????????? | | ?????????????????????????????????????????????????? | | ?????????????????????????????????????????????????? | | ?????????????????????????????????????????????????? | | ?????????????????????????????????????????????????? | | ?????????????????????????????????????????????????? | | ?????????????????????????????????????????????????? | | ?????????????????????????????????????????????????? | | ?????????????????????????????????????????????????? | | ?????????????????????????????????????????????????? | | | | | | | | | +----------------------------------------------------+ Best States ------------- Heat Dissipation 69 Energy Generation 25 Energy Capacity 350 Matter Stores 300 Matter Capacity 300 Sight Range 16 Robot Scan Range 15 Terrain Scan Density 10 ECM Strength 1 Jamming Range 12 Armor Coverage 375 Resistance: EX 25 Core Shielding 20 Power Shielding 33 Weapon Shielding 33 Point Defense Rating 80 Evasion (%) 55 Target Analysis 9 Recoil Reduction 2 Offensive Hacking 11 Defensive Hacking 14 Item Schematics ----------------- None Robot Schematics ------------------ None Fabricated ------------ Y-54 Guardian | x2 | -7/Factory | Preloaded Alien Tech Used ----------------- None Achievements -------------- A New Friend It Was An Accident, I Swear Leap Before You Look Maybe Next Time I'll Detach My Launcher My Command Is Your Wish No Signal Shopping List System Compromised Challenges ------------ None Game ------ Seed HybridLightpackSheargun Manual? 0 Play Time 02:40:11 Cumulative 6.9 hours Start 2024.04.19 @ 21:34:18 End 2024.04.20 @ 11:53:29 Sessions 5 Manual Loads 0 Difficulty Rogue Special Mode None Game No. 5 Rogue 5 Adventurer 0 Explorer 0 Win Type - Total 0 Types 0/0/0/0/0/0/0/0/0 Lore% 16 Gallery% 12 Achievement% 13 Wizard Run 0 Options --------- Layout 1 ASCII 0 Keyboard 0 Movement Numpad Keybinds 0 Fullscreen 2 Font 24/Smallcaps Map View 50x35 Zoom Use 0% Tactical HUD 1 Map Filters NONE Filters NONE Steam 1 RUN: 949ef2e3-a6a9-4197-ba4b-8c12002bf0d6